[Event "Titled Tuesday Blitz November 08 Early 2022"]
[White "Omariev, Maksim"]
[Black "Arabidze, Meri"]
[WhiteFideId "4193423"]
[BlackFideId "13604040"]
[WhiteElo "2415"]
[BlackElo "2403"]
[Result "0-1"]
[Round "03"]
[TimeControl "180+1"]
[Date "2022.11.09"]
[WhiteClock "0:00:02"]
[BlackClock "0:00:45"]

1. g4 {[%clk 0:02:51]}  e5 {[%clk 0:02:58]} 2. Bg2 {[%clk 0:02:51]}  Nc6 {[%clk 0:02:58]} 3. c4 {[%clk 0:02:50]}  d6 {[%clk 0:02:57]} 4. h3 {[%clk 0:02:48]}  Nge7 {[%clk 0:02:57]} 5. d3 {[%clk 0:02:44]}  Ng6 {[%clk 0:02:58]} 6. Nf3 {[%clk 0:02:44]}  Be7 {[%clk 0:02:57]} 7. Nc3 {[%clk 0:02:43]}  f5 {[%clk 0:02:57]} 8. gxf5 {[%clk 0:02:02]}  Bxf5 {[%clk 0:02:58]} 9. Be3 {[%clk 0:02:02]}  O-O {[%clk 0:02:54]} 10. Qd2 {[%clk 0:02:02]}  Nf4 {[%clk 0:02:48]} 11. Rg1 {[%clk 0:01:54]}  Nxg2+ {[%clk 0:02:28]} 12. Rxg2 {[%clk 0:01:55]}  Kh8 {[%clk 0:02:28]} 13. O-O-O {[%clk 0:01:55]}  a6 {[%clk 0:02:27]} 14. Rdg1 {[%clk 0:01:53]}  Rf7 {[%clk 0:02:13]} 15. Nd5 {[%clk 0:01:31]}  b5 {[%clk 0:01:49]} 16. Nxe7 {[%clk 0:01:18]}  Qxe7 {[%clk 0:01:48]} 17. Ng5 {[%clk 0:01:18]}  Rf6 {[%clk 0:01:47]} 18. Ne4 {[%clk 0:01:10]}  Rg6 {[%clk 0:01:40]} 19. Rxg6 {[%clk 0:00:26]}  Bxg6 {[%clk 0:01:41]} 20. Qc3 {[%clk 0:00:26]}  b4 {[%clk 0:01:08]} 21. Qd2 {[%clk 0:00:23]}  a5 {[%clk 0:01:08]} 22. Ng5 {[%clk 0:00:15]}  a4 {[%clk 0:01:06]} 23. h4 {[%clk 0:00:15]}  a3 {[%clk 0:01:00]} 24. b3 {[%clk 0:00:15]}  Qf6 {[%clk 0:00:52]} 25. f3 {[%clk 0:00:14]}  e4 {[%clk 0:00:49]} 26. d4 {[%clk 0:00:06]}  exf3 {[%clk 0:00:49]} 27. Nxf3 {[%clk 0:00:03]}  Re8 {[%clk 0:00:48]} 28. Bg5 {[%clk 0:00:02]}  Qf5 {[%clk 0:00:47]} 29. Kd1 {[%clk 0:00:02]}  Qb1+ {[%clk 0:00:45]} 30. Qc1 {[%clk 0:00:02]}  Qxa2 {[%clk 0:00:45]} 31. d5 {[%clk 0:00:02]}  Qxe2# {[%clk 0:00:45]} 0-1


[Site "https://www.chess.com"]

[Event "Titled Tuesday Blitz November 08 Early 2022"]
[White "Orozbaev, Eldiar"]
[Black "Swiercz, Dariusz"]
[WhiteFideId "13802240"]
[BlackFideId "1126881"]
[WhiteElo "2244"]
[BlackElo "2627"]
[Result "1/2-1/2"]
[Round "03"]
[TimeControl "180+1"]
[Date "2022.11.09"]
[WhiteClock "0:00:05"]
[BlackClock "0:00:06"]

1. e4 {[%clk 0:02:54]}  c5 {[%clk 0:02:59]} 2. c3 {[%clk 0:02:52]}  e5 {[%clk 0:02:58]} 3. Nf3 {[%clk 0:02:51]}  Nc6 {[%clk 0:02:58]} 4. d4 {[%clk 0:02:51]}  cxd4 {[%clk 0:02:59]} 5. cxd4 {[%clk 0:02:52]}  exd4 {[%clk 0:03:00]} 6. Nxd4 {[%clk 0:02:53]}  Nf6 {[%clk 0:03:00]} 7. Nc3 {[%clk 0:02:53]}  Bb4 {[%clk 0:03:00]} 8. Nxc6 {[%clk 0:02:49]}  dxc6 {[%clk 0:03:01]} 9. Qxd8+ {[%clk 0:02:48]}  Kxd8 {[%clk 0:03:02]} 10. Bg5 {[%clk 0:02:49]}  Be6 {[%clk 0:02:46]} 11. O-O-O+ {[%clk 0:02:40]}  Kc8 {[%clk 0:02:45]} 12. Bxf6 {[%clk 0:02:28]}  gxf6 {[%clk 0:02:45]} 13. a3 {[%clk 0:02:27]}  Bc5 {[%clk 0:02:44]} 14. f3 {[%clk 0:02:27]}  Bb3 {[%clk 0:02:41]} 15. Rd3 {[%clk 0:02:19]}  Rd8 {[%clk 0:02:33]} 16. Rxd8+ {[%clk 0:02:14]}  Kxd8 {[%clk 0:02:33]} 17. Bd3 {[%clk 0:02:15]}  Ke7 {[%clk 0:02:26]} 18. Bc2 {[%clk 0:02:14]}  Be3+ {[%clk 0:02:24]} 19. Kb1 {[%clk 0:02:14]}  Bc4 {[%clk 0:02:21]} 20. Rd1 {[%clk 0:02:06]}  Rd8 {[%clk 0:02:20]} 21. b3 {[%clk 0:01:56]}  Ba6 {[%clk 0:02:13]} 22. Rxd8 {[%clk 0:01:40]}  Kxd8 {[%clk 0:02:14]} 23. Bd1 {[%clk 0:01:40]}  Bf1 {[%clk 0:02:03]} 24. g4 {[%clk 0:01:32]}  Ke7 {[%clk 0:01:46]} 25. Ne2 {[%clk 0:01:25]}  Ke6 {[%clk 0:01:31]} 26. Kc2 {[%clk 0:01:23]}  Ke5 {[%clk 0:01:28]} 27. Ng3 {[%clk 0:01:20]}  Bh3 {[%clk 0:01:17]} 28. Be2 {[%clk 0:01:06]}  Bg1 {[%clk 0:01:14]} 29. Nf5 {[%clk 0:01:03]}  Bxh2 {[%clk 0:01:09]} 30. Nh6 {[%clk 0:01:03]}  Kf4 {[%clk 0:01:03]} 31. Nxf7 {[%clk 0:00:32]}  Bg2 {[%clk 0:01:03]} 32. Kd3 {[%clk 0:00:20]}  Bg1 {[%clk 0:00:36]} 33. Nd6 {[%clk 0:00:12]}  Bxf3 {[%clk 0:00:27]} 34. Bxf3 {[%clk 0:00:13]}  Kxf3 {[%clk 0:00:28]} 35. Ne8 {[%clk 0:00:14]}  Bc5 {[%clk 0:00:12]} 36. Nxf6 {[%clk 0:00:14]}  Be7 {[%clk 0:00:05]} 37. g5 {[%clk 0:00:07]}  h6 {[%clk 0:00:03]} 38. Ng8 {[%clk 0:00:04]}  Bxg5 {[%clk 0:00:03]} 39. e5 {[%clk 0:00:05]}  Kf4 {[%clk 0:00:02]} 40. e6 {[%clk 0:00:05]}  Kf5 {[%clk 0:00:03]} 41. e7 {[%clk 0:00:04]}  Bxe7 {[%clk 0:00:03]} 42. Nxe7+ {[%clk 0:00:05]}  Kg4 {[%clk 0:00:03]} 43. Ke3 {[%clk 0:00:04]}  h5 {[%clk 0:00:03]} 44. Kf2 {[%clk 0:00:04]}  Kf4 {[%clk 0:00:04]} 45. Nc8 {[%clk 0:00:05]}  a5 {[%clk 0:00:04]} 46. Nd6 {[%clk 0:00:05]}  b5 {[%clk 0:00:04]} 47. Nb7 {[%clk 0:00:05]}  a4 {[%clk 0:00:04]} 48. bxa4 {[%clk 0:00:04]}  bxa4 {[%clk 0:00:05]} 49. Nc5 {[%clk 0:00:05]}  Ke5 {[%clk 0:00:04]} 50. Nxa4 {[%clk 0:00:05]}  Kd4 {[%clk 0:00:05]} 51. Nb2 {[%clk 0:00:05]}  c5 {[%clk 0:00:04]} 52. a4 {[%clk 0:00:05]}  c4 {[%clk 0:00:05]} 53. Nxc4 {[%clk 0:00:02]}  Kxc4 {[%clk 0:00:05]} 54. Kg3 {[%clk 0:00:03]}  Kb4 {[%clk 0:00:06]} 55. Kh4 {[%clk 0:00:04]}  Kxa4 {[%clk 0:00:06]} 56. Kxh5 {[%clk 0:00:05]} 1/2-1/2


[Site "https://www.chess.com"]

[Event "Titled Tuesday Blitz November 08 Early 2022"]
[White "Ostrovskiy, Aleksandr"]
[Black "Lehtosaari, Mauri"]
[WhiteFideId "2034239"]
[BlackFideId "501999"]
[WhiteElo "2340"]
[BlackElo "2509"]
[Result "0-1"]
[Round "03"]
[TimeControl "180+1"]
[Date "2022.11.09"]
[WhiteClock "0:00:01"]
[BlackClock "0:00:04"]

1. d4 {[%clk 0:03:00]}  d5 {[%clk 0:02:59]} 2. Bf4 {[%clk 0:03:00]}  c5 {[%clk 0:02:59]} 3. e3 {[%clk 0:03:00]}  Nc6 {[%clk 0:02:59]} 4. c3 {[%clk 0:03:00]}  Qb6 {[%clk 0:02:58]} 5. Qb3 {[%clk 0:02:58]}  c4 {[%clk 0:02:57]} 6. Qc2 {[%clk 0:02:56]}  g6 {[%clk 0:02:42]} 7. e4 {[%clk 0:02:51]}  e6 {[%clk 0:02:25]} 8. Nd2 {[%clk 0:02:44]}  Bg7 {[%clk 0:02:24]} 9. e5 {[%clk 0:02:35]}  Nge7 {[%clk 0:02:20]} 10. h4 {[%clk 0:02:31]}  h6 {[%clk 0:02:14]} 11. g3 {[%clk 0:02:16]}  Bd7 {[%clk 0:02:11]} 12. Bg2 {[%clk 0:02:10]}  Qa5 {[%clk 0:02:08]} 13. Ne2 {[%clk 0:02:00]}  b5 {[%clk 0:02:08]} 14. O-O {[%clk 0:01:55]}  Qb6 {[%clk 0:02:06]} 15. b3 {[%clk 0:01:49]}  O-O {[%clk 0:01:48]} 16. Rfb1 {[%clk 0:01:40]}  Qc7 {[%clk 0:01:25]} 17. a4 {[%clk 0:01:24]}  a6 {[%clk 0:01:23]} 18. b4 {[%clk 0:01:18]}  Nf5 {[%clk 0:01:17]} 19. Nf1 {[%clk 0:01:08]}  bxa4 {[%clk 0:00:52]} 20. Rxa4 {[%clk 0:01:02]}  Ncxd4 {[%clk 0:00:44]} 21. Nxd4 {[%clk 0:00:50]}  Nxd4 {[%clk 0:00:40]} 22. cxd4 {[%clk 0:00:51]}  Bxa4 {[%clk 0:00:39]} 23. Qxa4 {[%clk 0:00:52]}  Rfb8 {[%clk 0:00:36]} 24. Ne3 {[%clk 0:00:43]}  Qb6 {[%clk 0:00:23]} 25. Nc2 {[%clk 0:00:29]}  Bf8 {[%clk 0:00:20]} 26. Ra1 {[%clk 0:00:18]}  Bxb4 {[%clk 0:00:14]} 27. Bxh6 {[%clk 0:00:17]}  Be7 {[%clk 0:00:09]} 28. Ne3 {[%clk 0:00:14]}  Qb5 {[%clk 0:00:08]} 29. Qa2 {[%clk 0:00:13]}  Qb2 {[%clk 0:00:07]} 30. Qa5 {[%clk 0:00:13]}  Qb5 {[%clk 0:00:06]} 31. Qe1 {[%clk 0:00:13]}  Qb2 {[%clk 0:00:05]} 32. Rd1 {[%clk 0:00:11]}  a5 {[%clk 0:00:04]} 33. Ng4 {[%clk 0:00:11]}  a4 {[%clk 0:00:03]} 34. Bc1 {[%clk 0:00:07]}  Qc2 {[%clk 0:00:03]} 35. Rd2 {[%clk 0:00:06]}  Qb1 {[%clk 0:00:03]} 36. Rd1 {[%clk 0:00:07]}  Qc2 {[%clk 0:00:02]} 37. Nf6+ {[%clk 0:00:05]}  Bxf6 {[%clk 0:00:01]} 38. exf6 {[%clk 0:00:06]}  a3 {[%clk 0:00:02]} 39. Rd2 {[%clk 0:00:02]}  Qb1 {[%clk 0:00:02]} 40. Rd1 {[%clk 0:00:03]}  Qc2 {[%clk 0:00:02]} 41. Bxa3 {[%clk 0:00:02]}  Rxa3 {[%clk 0:00:03]} 42. Rc1 {[%clk 0:00:02]}  Qb2 {[%clk 0:00:03]} 43. Rd1 {[%clk 0:00:02]}  Ra2 {[%clk 0:00:03]} 44. Qe3 {[%clk 0:00:02]}  Rba8 {[%clk 0:00:03]} 45. Qh6 {[%clk 0:00:02]}  Qxf2+ {[%clk 0:00:03]} 46. Kh1 {[%clk 0:00:01]}  Qxg2# {[%clk 0:00:04]} 0-1


[Site "https://www.chess.com"]

[Event "Titled Tuesday Blitz November 08 Early 2022"]
[White "Pakleza, Zbigniew"]
[Black "Shimanov, Aleksandr"]
[WhiteFideId "1119290"]
[BlackFideId "4198603"]
[WhiteElo "2411"]
[BlackElo "2605"]
[Result "1-0"]
[Round "03"]
[TimeControl "180+1"]
[Date "2022.11.08"]
[WhiteClock "0:00:05"]
[BlackClock "0:00:02"]

1. d4 {[%clk 0:03:00]}  d5 {[%clk 0:02:48]} 2. Bf4 {[%clk 0:03:00]}  c5 {[%clk 0:02:48]} 3. c3 {[%clk 0:03:00]}  Nc6 {[%clk 0:02:47]} 4. e3 {[%clk 0:03:00]}  Nf6 {[%clk 0:02:46]} 5. Nd2 {[%clk 0:03:00]}  e6 {[%clk 0:02:23]} 6. Ngf3 {[%clk 0:02:59]}  Bd6 {[%clk 0:02:22]} 7. Bg3 {[%clk 0:02:59]}  O-O {[%clk 0:02:22]} 8. Bd3 {[%clk 0:02:59]}  Qe7 {[%clk 0:01:59]} 9. Ne5 {[%clk 0:02:58]}  Nd7 {[%clk 0:01:58]} 10. Nxd7 {[%clk 0:02:56]}  Qxd7 {[%clk 0:01:59]} 11. Qh5 {[%clk 0:02:28]}  f5 {[%clk 0:01:56]} 12. Bxd6 {[%clk 0:02:07]}  Qxd6 {[%clk 0:01:56]} 13. f4 {[%clk 0:02:07]}  cxd4 {[%clk 0:01:43]} 14. cxd4 {[%clk 0:02:08]}  b6 {[%clk 0:01:43]} 15. O-O {[%clk 0:02:05]}  a5 {[%clk 0:01:41]} 16. Rfc1 {[%clk 0:01:55]}  Nb4 {[%clk 0:01:30]} 17. Bf1 {[%clk 0:01:47]}  Ba6 {[%clk 0:01:29]} 18. a3 {[%clk 0:01:43]}  Bxf1 {[%clk 0:01:14]} 19. axb4 {[%clk 0:01:42]}  Bd3 {[%clk 0:01:14]} 20. bxa5 {[%clk 0:01:42]}  bxa5 {[%clk 0:01:15]} 21. Nf3 {[%clk 0:01:38]}  Be4 {[%clk 0:01:04]} 22. Ne5 {[%clk 0:01:36]}  Qe7 {[%clk 0:00:57]} 23. Rc5 {[%clk 0:01:20]}  Qb7 {[%clk 0:00:51]} 24. Qe2 {[%clk 0:01:03]}  h6 {[%clk 0:00:41]} 25. h4 {[%clk 0:00:55]}  Rfb8 {[%clk 0:00:39]} 26. Rac1 {[%clk 0:00:24]}  Kh7 {[%clk 0:00:34]} 27. Qh5 {[%clk 0:00:15]}  Ra7 {[%clk 0:00:11]} 28. Qg6+ {[%clk 0:00:12]}  Kh8 {[%clk 0:00:10]} 29. Nf7+ {[%clk 0:00:06]}  Qxf7 {[%clk 0:00:04]} 30. Rc8+ {[%clk 0:00:06]}  Rxc8 {[%clk 0:00:03]} 31. Rxc8+ {[%clk 0:00:07]}  Qg8 {[%clk 0:00:04]} 32. Rxg8+ {[%clk 0:00:07]}  Kxg8 {[%clk 0:00:05]} 33. Qxe6+ {[%clk 0:00:08]}  Kh7 {[%clk 0:00:06]} 34. Qb6 {[%clk 0:00:06]}  Ra8 {[%clk 0:00:04]} 35. h5 {[%clk 0:00:06]}  Rc8 {[%clk 0:00:03]} 36. Qxa5 {[%clk 0:00:03]}  Rc2 {[%clk 0:00:03]} 37. b4 {[%clk 0:00:04]}  Rxg2+ {[%clk 0:00:02]} 38. Kf1 {[%clk 0:00:05]}  g6 {[%clk 0:00:01]} 39. Qc7+ {[%clk 0:00:04]}  Kg8 {[%clk 0:00:02]} 40. Qd8+ {[%clk 0:00:04]}  Kg7 {[%clk 0:00:02]} 41. Qe7+ {[%clk 0:00:04]}  Kg8 {[%clk 0:00:02]} 42. hxg6 {[%clk 0:00:05]}  Rxg6 {[%clk 0:00:02]} 43. Qe8+ {[%clk 0:00:04]}  Kg7 {[%clk 0:00:02]} 44. b5 {[%clk 0:00:05]}  h5 {[%clk 0:00:02]} 45. Qe7+ {[%clk 0:00:04]}  Kh6 {[%clk 0:00:03]} 46. Qf8+ {[%clk 0:00:05]}  Kh7 {[%clk 0:00:03]} 47. Qf7+ {[%clk 0:00:04]}  Kh6 {[%clk 0:00:03]} 48. Qf8+ {[%clk 0:00:05]}  Kh7 {[%clk 0:00:03]} 49. Qd8 {[%clk 0:00:05]}  Rg8 {[%clk 0:00:02]} 50. Qc7+ {[%clk 0:00:04]}  Rg7 {[%clk 0:00:02]} 51. b6 {[%clk 0:00:05]}  h4 {[%clk 0:00:01]} 52. Qxg7+ {[%clk 0:00:03]}  Kxg7 {[%clk 0:00:02]} 53. b7 {[%clk 0:00:04]}  h3 {[%clk 0:00:03]} 54. Kg1 {[%clk 0:00:04]}  h2+ {[%clk 0:00:04]} 55. Kxh2 {[%clk 0:00:04]}  Bh1 {[%clk 0:00:02]} 56. b8=Q {[%clk 0:00:05]} 1-0


[Site "https://www.chess.com"]

[Event "Titled Tuesday Blitz November 08 Early 2022"]
[White "Parkhov, Yair"]
[Black "Remizov, Yaroslav"]
[WhiteFideId "2813408"]
[BlackFideId "34134015"]
[WhiteElo "2384"]
[BlackElo "2414"]
[Result "0-1"]
[Round "03"]
[TimeControl "180+1"]
[Date "2022.11.09"]
[WhiteClock "0:01:19"]
[BlackClock "0:02:05"]

1. e4 {[%clk 0:03:00]}  c6 {[%clk 0:02:59]} 2. Nf3 {[%clk 0:02:57]}  d5 {[%clk 0:03:00]} 3. Nc3 {[%clk 0:02:58]}  dxe4 {[%clk 0:03:00]} 4. Nxe4 {[%clk 0:02:59]}  Nf6 {[%clk 0:03:01]} 5. Qe2 {[%clk 0:02:59]}  Nxe4 {[%clk 0:03:01]} 6. Qxe4 {[%clk 0:03:00]}  Qd5 {[%clk 0:03:02]} 7. Qf4 {[%clk 0:02:58]}  Qf5 {[%clk 0:03:01]} 8. Qe3 {[%clk 0:02:58]}  Qe6 {[%clk 0:03:00]} 9. Bc4 {[%clk 0:02:57]}  Qxc4 {[%clk 0:02:55]} 10. d3 {[%clk 0:02:53]}  Qe6 {[%clk 0:02:54]} 11. O-O {[%clk 0:02:52]}  Qxe3 {[%clk 0:02:54]} 12. fxe3 {[%clk 0:02:52]}  f6 {[%clk 0:02:50]} 13. b3 {[%clk 0:02:51]}  Nd7 {[%clk 0:02:49]} 14. Nd4 {[%clk 0:02:50]}  Nb6 {[%clk 0:02:47]} 15. a4 {[%clk 0:02:49]}  e5 {[%clk 0:02:47]} 16. a5 {[%clk 0:02:50]}  Nd5 {[%clk 0:02:45]} 17. Ne2 {[%clk 0:02:49]}  Bg4 {[%clk 0:02:44]} 18. Ng3 {[%clk 0:02:46]}  Bc5 {[%clk 0:02:43]} 19. Re1 {[%clk 0:02:43]}  O-O-O {[%clk 0:02:41]} 20. Ra4 {[%clk 0:02:40]}  h5 {[%clk 0:02:39]} 21. Bd2 {[%clk 0:02:34]}  Be7 {[%clk 0:02:25]} 22. Rb1 {[%clk 0:02:17]}  Be6 {[%clk 0:02:20]} 23. Ne4 {[%clk 0:02:06]}  f5 {[%clk 0:02:18]} 24. Nf2 {[%clk 0:02:06]}  Nc7 {[%clk 0:02:15]} 25. Nh3 {[%clk 0:01:51]}  g5 {[%clk 0:02:14]} 26. Bc3 {[%clk 0:01:47]}  Bf6 {[%clk 0:02:10]} 27. e4 {[%clk 0:01:46]}  f4 {[%clk 0:02:09]} 28. Nf2 {[%clk 0:01:46]}  Nb5 {[%clk 0:02:09]} 29. Bb2 {[%clk 0:01:45]}  g4 {[%clk 0:02:09]} 30. Nd1 {[%clk 0:01:42]}  h4 {[%clk 0:02:08]} 31. Nc3 {[%clk 0:01:41]}  Nxc3 {[%clk 0:02:08]} 32. Bxc3 {[%clk 0:01:42]}  h3 {[%clk 0:02:08]} 33. b4 {[%clk 0:01:40]}  a6 {[%clk 0:02:08]} 34. Rf1 {[%clk 0:01:38]}  hxg2 {[%clk 0:02:07]} 35. Rxf4 {[%clk 0:01:38]}  exf4 {[%clk 0:02:06]} 36. Bxf6 {[%clk 0:01:38]}  f3 {[%clk 0:02:06]} 37. Ra1 {[%clk 0:01:37]}  g3 {[%clk 0:02:06]} 38. h4 {[%clk 0:01:19]}  Bh3 {[%clk 0:02:05]} 0-1


[Site "https://www.chess.com"]

[Event "Titled Tuesday Blitz November 08 Early 2022"]
[White "Piesik, Piotr"]
[Black "Miszler, Levente"]
[WhiteFideId "1136194"]
[BlackFideId "763276"]
[WhiteElo "2316"]
[BlackElo "2176"]
[Result "1-0"]
[Round "03"]
[TimeControl "180+1"]
[Date "2022.11.09"]
[WhiteClock "0:01:42"]
[BlackClock "0:00:26"]

1. Nf3 {[%clk 0:02:52]}  Nf6 {[%clk 0:02:57]} 2. g3 {[%clk 0:02:52]}  g6 {[%clk 0:02:57]} 3. Bg2 {[%clk 0:02:53]}  Bg7 {[%clk 0:02:58]} 4. O-O {[%clk 0:02:53]}  O-O {[%clk 0:02:58]} 5. d4 {[%clk 0:02:54]}  d5 {[%clk 0:02:58]} 6. c4 {[%clk 0:02:54]}  dxc4 {[%clk 0:02:59]} 7. Na3 {[%clk 0:02:54]}  c3 {[%clk 0:02:58]} 8. bxc3 {[%clk 0:02:55]}  c5 {[%clk 0:02:58]} 9. Qb3 {[%clk 0:02:56]}  Nc6 {[%clk 0:02:57]} 10. Rd1 {[%clk 0:02:55]}  Na5 {[%clk 0:02:39]} 11. Qb2 {[%clk 0:02:54]}  Qb6 {[%clk 0:02:30]} 12. Ne5 {[%clk 0:02:48]}  Be6 {[%clk 0:02:17]} 13. Rb1 {[%clk 0:02:31]}  Qxb2 {[%clk 0:01:55]} 14. Rxb2 {[%clk 0:02:32]}  Rab8 {[%clk 0:01:50]} 15. e3 {[%clk 0:02:17]}  Rfc8 {[%clk 0:01:41]} 16. Bd2 {[%clk 0:02:15]}  Nd7 {[%clk 0:01:29]} 17. Nd3 {[%clk 0:02:08]}  b6 {[%clk 0:01:11]} 18. d5 {[%clk 0:01:56]}  Bf5 {[%clk 0:00:41]} 19. e4 {[%clk 0:01:56]}  c4 {[%clk 0:00:38]} 20. Nb4 {[%clk 0:01:51]}  Bxe4 {[%clk 0:00:29]} 21. Bxe4 {[%clk 0:01:50]}  Nc5 {[%clk 0:00:30]} 22. Bc2 {[%clk 0:01:45]}  Nab7 {[%clk 0:00:28]} 23. Nc6 {[%clk 0:01:43]}  Ra8 {[%clk 0:00:26]} 24. Nxe7+ {[%clk 0:01:42]} 1-0


[Site "https://www.chess.com"]

[Event "Titled Tuesday Blitz November 08 Early 2022"]
[White "Pranav, V"]
[Black "Bacrot, Etienne"]
[WhiteFideId "25060783"]
[BlackFideId "605506"]
[WhiteElo "2430"]
[BlackElo "2666"]
[Result "0-1"]
[Round "03"]
[TimeControl "180+1"]
[Date "2022.11.08"]
[WhiteClock "0:00:05"]
[BlackClock "0:00:15"]

1. e4 {[%clk 0:03:00]}  g6 {[%clk 0:02:59]} 2. d4 {[%clk 0:03:00]}  Bg7 {[%clk 0:02:59]} 3. Nc3 {[%clk 0:03:01]}  d6 {[%clk 0:02:59]} 4. Bg5 {[%clk 0:03:01]}  h6 {[%clk 0:02:58]} 5. Bh4 {[%clk 0:03:01]}  a6 {[%clk 0:02:58]} 6. f4 {[%clk 0:03:00]}  Nd7 {[%clk 0:02:54]} 7. Nf3 {[%clk 0:03:01]}  c5 {[%clk 0:02:54]} 8. e5 {[%clk 0:02:43]}  cxd4 {[%clk 0:02:37]} 9. Qxd4 {[%clk 0:02:44]}  dxe5 {[%clk 0:02:35]} 10. fxe5 {[%clk 0:02:39]}  Nxe5 {[%clk 0:02:34]} 11. Qe3 {[%clk 0:02:26]}  Nxf3+ {[%clk 0:02:22]} 12. Qxf3 {[%clk 0:02:08]}  Nf6 {[%clk 0:02:21]} 13. Bd3 {[%clk 0:01:41]}  O-O {[%clk 0:02:06]} 14. h3 {[%clk 0:01:41]}  Qd4 {[%clk 0:01:59]} 15. Bg3 {[%clk 0:01:40]}  Bd7 {[%clk 0:01:23]} 16. O-O-O {[%clk 0:01:36]}  Bc6 {[%clk 0:01:23]} 17. Qe2 {[%clk 0:01:36]}  Nd5 {[%clk 0:01:23]} 18. Be1 {[%clk 0:00:43]}  Qe3+ {[%clk 0:01:21]} 19. Bd2 {[%clk 0:00:43]}  Qxe2 {[%clk 0:01:15]} 20. Nxe2 {[%clk 0:00:44]}  Rad8 {[%clk 0:00:50]} 21. Rhe1 {[%clk 0:00:36]}  e6 {[%clk 0:00:50]} 22. Ng3 {[%clk 0:00:34]}  Rfe8 {[%clk 0:00:49]} 23. Ne4 {[%clk 0:00:34]}  f5 {[%clk 0:00:46]} 24. Nc5 {[%clk 0:00:33]}  e5 {[%clk 0:00:46]} 25. Bc4 {[%clk 0:00:33]}  Kh7 {[%clk 0:00:43]} 26. Ba5 {[%clk 0:00:33]}  b6 {[%clk 0:00:34]} 27. Bxd5 {[%clk 0:00:33]}  Rxd5 {[%clk 0:00:34]} 28. Rxd5 {[%clk 0:00:28]}  Bxd5 {[%clk 0:00:34]} 29. Bxb6 {[%clk 0:00:29]}  Bxg2 {[%clk 0:00:33]} 30. h4 {[%clk 0:00:27]}  e4 {[%clk 0:00:30]} 31. Nb3 {[%clk 0:00:24]}  f4 {[%clk 0:00:28]} 32. Bc7 {[%clk 0:00:18]}  f3 {[%clk 0:00:27]} 33. Bb6 {[%clk 0:00:18]}  Bf6 {[%clk 0:00:23]} 34. Bf2 {[%clk 0:00:18]}  e3 {[%clk 0:00:23]} 35. Rxe3 {[%clk 0:00:14]}  Rxe3 {[%clk 0:00:23]} 36. Bxe3 {[%clk 0:00:15]}  Bxh4 {[%clk 0:00:24]} 37. c4 {[%clk 0:00:15]}  f2 {[%clk 0:00:23]} 38. Nd2 {[%clk 0:00:13]}  f1=Q+ {[%clk 0:00:22]} 39. Nxf1 {[%clk 0:00:14]}  Bxf1 {[%clk 0:00:23]} 40. c5 {[%clk 0:00:15]}  Bg2 {[%clk 0:00:19]} 41. Kc2 {[%clk 0:00:15]}  Bc6 {[%clk 0:00:20]} 42. Kc3 {[%clk 0:00:13]}  Kg7 {[%clk 0:00:19]} 43. Kb4 {[%clk 0:00:14]}  Bd8 {[%clk 0:00:18]} 44. a4 {[%clk 0:00:14]}  h5 {[%clk 0:00:17]} 45. Kc4 {[%clk 0:00:12]}  h4 {[%clk 0:00:17]} 46. b4 {[%clk 0:00:11]}  Bxa4 {[%clk 0:00:17]} 47. Kd5 {[%clk 0:00:11]}  h3 {[%clk 0:00:17]} 48. Bf4 {[%clk 0:00:11]}  Bg5 {[%clk 0:00:16]} 49. Bh2 {[%clk 0:00:10]}  Bd2 {[%clk 0:00:16]} 50. Kc4 {[%clk 0:00:05]}  Bb5+ {[%clk 0:00:15]} 0-1


[Site "https://www.chess.com"]

[Event "Titled Tuesday Blitz November 08 Early 2022"]
[White "Prydun, Andriy"]
[Black "Levine, David"]
[WhiteFideId "14145898"]
[BlackFideId "2011611"]
[WhiteElo "2163"]
[BlackElo "2177"]
[Result "1-0"]
[Round "03"]
[TimeControl "180+1"]
[Date "2022.11.09"]
[WhiteClock "0:00:40"]
[BlackClock "0:00:45"]

1. e4 {[%clk 0:03:00]}  e5 {[%clk 0:02:59]} 2. Nf3 {[%clk 0:03:01]}  Nc6 {[%clk 0:02:58]} 3. Nc3 {[%clk 0:02:54]}  Nf6 {[%clk 0:02:57]} 4. d4 {[%clk 0:02:54]}  exd4 {[%clk 0:02:56]} 5. Nxd4 {[%clk 0:02:53]}  Bb4 {[%clk 0:02:56]} 6. Nxc6 {[%clk 0:02:53]}  bxc6 {[%clk 0:02:57]} 7. Bd3 {[%clk 0:02:53]}  d5 {[%clk 0:02:57]} 8. Bd2 {[%clk 0:02:52]}  O-O {[%clk 0:02:52]} 9. O-O {[%clk 0:02:51]}  Bg4 {[%clk 0:02:46]} 10. f3 {[%clk 0:02:49]}  Be6 {[%clk 0:02:46]} 11. Qe1 {[%clk 0:02:40]}  Re8 {[%clk 0:02:26]} 12. Rd1 {[%clk 0:02:37]}  Rb8 {[%clk 0:02:23]} 13. b3 {[%clk 0:02:32]}  a5 {[%clk 0:02:11]} 14. Qg3 {[%clk 0:02:09]}  Nh5 {[%clk 0:01:56]} 15. Qf2 {[%clk 0:01:55]}  Qd6 {[%clk 0:01:44]} 16. Kh1 {[%clk 0:01:50]}  Nf4 {[%clk 0:01:38]} 17. Na4 {[%clk 0:01:12]}  Bxd2 {[%clk 0:01:09]} 18. Qxd2 {[%clk 0:01:08]}  d4 {[%clk 0:01:05]} 19. Qxa5 {[%clk 0:01:02]}  Rb5 {[%clk 0:01:00]} 20. Bxb5 {[%clk 0:01:01]}  Qe5 {[%clk 0:00:53]} 21. Nb2 {[%clk 0:00:44]}  Qg5 {[%clk 0:00:48]} 22. Qd2 {[%clk 0:00:40]}  cxb5 {[%clk 0:00:45]} 23. Nd3 {[%clk 0:00:40]} 1-0


[Site "https://www.chess.com"]